[Event "*** SCC Grand Prix: Titled Tuesday Blitz"]
[Site "Chess.com"]
[Date "2020.08.11"]
[Round "9"]
[White "gagtemp"]
[Black "Morshynska"]
[Result "0-1"]
[WhiteElo "1947"]
[BlackElo "2159"]
[TimeControl "180+1"]
[EndTime "11:45:39 PDT"]
[Termination "Morshynska won by resignation"]

1. e4 {[%clk 0:03:00.9]} 1... c5 {[%clk 0:02:59.2]} 2. Nf3 {[%clk 0:03:00.6]}
2... d6 {[%clk 0:02:59.4]} 3. d4 {[%clk 0:03:00.6]} 3... cxd4 {[%clk 0:03:00.3]}
4. Nxd4 {[%clk 0:03:00.9]} 4... Nf6 {[%clk 0:03:00.5]} 5. Nc3 {[%clk 0:03:00.9]}
5... a6 {[%clk 0:03:00.8]} 6. Be3 {[%clk 0:03:00.8]} 6... e5 {[%clk 0:03:00.1]}
7. Nb3 {[%clk 0:03:00.9]} 7... Be7 {[%clk 0:02:59.5]} 8. f3 {[%clk 0:03:00.7]}
8... Be6 {[%clk 0:02:57.8]} 9. Qd2 {[%clk 0:03:00.6]} 9... O-O {[%clk
0:02:52.6]} 10. Be2 {[%clk 0:03:00.3]} 10... b5 {[%clk 0:02:51]} 11. Nd5 {[%clk
0:02:54]} 11... Bxd5 {[%clk 0:02:50.6]} 12. exd5 {[%clk 0:02:54.1]} 12... Nbd7
{[%clk 0:02:50.9]} 13. Na5 {[%clk 0:02:54]} 13... Re8 {[%clk 0:02:30.6]} 14. O-O
{[%clk 0:02:50.7]} 14... Nb6 {[%clk 0:02:10.3]} 15. Nc6 {[%clk 0:02:47.6]} 15...
Qc7 {[%clk 0:02:10.1]} 16. Bxb6 {[%clk 0:02:39.6]} 16... Qxb6+ {[%clk
0:02:08.9]} 17. Kh1 {[%clk 0:02:39.7]} 17... Bf8 {[%clk 0:02:06.7]} 18. a4
{[%clk 0:02:34]} 18... Rac8 {[%clk 0:01:50.4]} 19. axb5 {[%clk 0:02:27.3]} 19...
axb5 {[%clk 0:01:51.3]} 20. Na7 {[%clk 0:02:17.2]} 20... Rc5 {[%clk 0:01:38.8]}
21. Bxb5 {[%clk 0:01:57.3]} 21... Rxb5 {[%clk 0:00:52.9]} 22. Nxb5 {[%clk
0:01:58.2]} 22... Qxb5 {[%clk 0:00:53.8]} 23. b4 {[%clk 0:01:43.5]} 23... Rb8
{[%clk 0:00:41.5]} 24. Rfb1 {[%clk 0:01:27.2]} 24... h6 {[%clk 0:00:38.8]} 25.
h3 {[%clk 0:00:55]} 25... Qxd5 {[%clk 0:00:38.5]} 26. Qe2 {[%clk 0:00:48.5]}
26... Qd4 {[%clk 0:00:34.7]} 27. b5 {[%clk 0:00:39.2]} 27... Nh5 {[%clk
0:00:33.4]} 28. Qe1 {[%clk 0:00:30.9]} 28... d5 {[%clk 0:00:23.7]} 29. c3 {[%clk
0:00:30.6]} 29... Qf4 {[%clk 0:00:22.2]} 30. b6 {[%clk 0:00:25.1]} 30... Ng3+
{[%clk 0:00:20.4]} 31. Kg1 {[%clk 0:00:24.3]} 31... Bc5+ {[%clk 0:00:19.7]} 32.
Kh2 {[%clk 0:00:19.1]} 32... Ne4+ {[%clk 0:00:18.8]} 33. Kh1 {[%clk 0:00:17.2]}
33... Nf2+ {[%clk 0:00:17.8]} 34. Kg1 {[%clk 0:00:16.3]} 34... Nd3+ {[%clk
0:00:15.9]} 35. Kf1 {[%clk 0:00:16.3]} 35... Nxe1 {[%clk 0:00:15.8]} 36. Rxe1
{[%clk 0:00:16.7]} 36... Rxb6 {[%clk 0:00:14.9]} 37. Ra8+ {[%clk 0:00:15.8]}
37... Kh7 {[%clk 0:00:14.5]} 38. Rd8 {[%clk 0:00:15.7]} 38... Rb2 {[%clk
0:00:13.6]} 0-1

[Event "*** SCC Grand Prix: Titled Tuesday Blitz"]
[Site "Chess.com"]
[Date "2020.08.11"]
[Round "9"]
[White "Ashedu66"]
[Black "GustavoJuarezF"]
[Result "0-1"]
[WhiteElo "2241"]
[BlackElo "2043"]
[TimeControl "180+1"]
[EndTime "11:45:40 PDT"]
[Termination "GustavoJuarezF won on time"]

1. d4 {[%clk 0:03:00.9]} 1... d5 {[%clk 0:02:57.7]} 2. c4 {[%clk 0:03:00.8]}
2... e6 {[%clk 0:02:57.5]} 3. Nc3 {[%clk 0:03:00.8]} 3... Nf6 {[%clk 0:02:57.2]}
4. Nf3 {[%clk 0:03:00.8]} 4... c6 {[%clk 0:02:53.4]} 5. e3 {[%clk 0:03:00.2]}
5... Bd6 {[%clk 0:02:52]} 6. Bd3 {[%clk 0:02:56.4]} 6... Nbd7 {[%clk 0:02:51.5]}
7. O-O {[%clk 0:02:54.6]} 7... dxc4 {[%clk 0:02:51.2]} 8. Bxc4 {[%clk
0:02:53.2]} 8... e5 {[%clk 0:02:47.8]} 9. Bb3 {[%clk 0:02:45]} 9... O-O {[%clk
0:02:36.9]} 10. h3 {[%clk 0:02:42.1]} 10... exd4 {[%clk 0:02:22.2]} 11. exd4
{[%clk 0:02:25.2]} 11... Nb6 {[%clk 0:02:17.2]} 12. Re1 {[%clk 0:02:21.8]} 12...
Bf5 {[%clk 0:02:15.2]} 13. Bg5 {[%clk 0:02:17.2]} 13... h6 {[%clk 0:02:14]} 14.
Bh4 {[%clk 0:02:13.4]} 14... g5 {[%clk 0:02:08.7]} 15. Nxg5 {[%clk 0:01:50]}
15... hxg5 {[%clk 0:02:07.2]} 16. Bxg5 {[%clk 0:01:49.7]} 16... Kg7 {[%clk
0:02:05.1]} 17. Qf3 {[%clk 0:01:42.6]} 17... Bg6 {[%clk 0:01:59.1]} 18. Re5
{[%clk 0:01:29.4]} 18... Nbd7 {[%clk 0:01:17.2]} 19. Rae1 {[%clk 0:01:23.5]}
19... Qb6 {[%clk 0:01:08.5]} 20. Be3 {[%clk 0:00:48.3]} 20... Qc7 {[%clk
0:00:52.4]} 21. Rg5 {[%clk 0:00:37.1]} 21... Rae8 {[%clk 0:00:34.1]} 22. Rc1
{[%clk 0:00:36.2]} 22... Bh2+ {[%clk 0:00:18.9]} 23. Kh1 {[%clk 0:00:34.1]}
23... Rxe3 {[%clk 0:00:18.2]} 24. Qxe3 {[%clk 0:00:28.4]} 24... Bf4 {[%clk
0:00:16.8]} 25. Rxg6+ {[%clk 0:00:10]} 25... fxg6 {[%clk 0:00:14.7]} 26. Qe1
{[%clk 0:00:07.4]} 26... Bxc1 {[%clk 0:00:13.7]} 27. Qxc1 {[%clk 0:00:07.5]}
27... Re8 {[%clk 0:00:12.8]} 28. d5 {[%clk 0:00:05.6]} 28... Re5 {[%clk
0:00:07.1]} 29. g3 {[%clk 0:00:04.7]} 29... Qd6 {[%clk 0:00:03.1]} 30. Qg5
{[%clk 0:00:03.3]} 30... Rxg5 {[%clk 0:00:01.7]} 0-1

[Event "*** SCC Grand Prix: Titled Tuesday Blitz"]
[Site "Chess.com"]
[Date "2020.08.11"]
[Round "9"]
[White "ArjunErigaisi2003"]
[Black "kuban1991"]
[Result "1-0"]
[WhiteElo "3015"]
[BlackElo "2753"]
[TimeControl "180+1"]
[EndTime "11:45:41 PDT"]
[Termination "ArjunErigaisi2003 won by resignation"]

1. d4 {[%clk 0:03:00.9]} 1... g6 {[%clk 0:02:59.5]} 2. e4 {[%clk 0:03:00.5]}
2... Bg7 {[%clk 0:02:59.6]} 3. Nc3 {[%clk 0:02:57.8]} 3... c6 {[%clk 0:02:59.5]}
4. Be3 {[%clk 0:02:51]} 4... d5 {[%clk 0:02:59.2]} 5. e5 {[%clk 0:02:51.2]} 5...
f6 {[%clk 0:02:58.6]} 6. Nf3 {[%clk 0:02:47]} 6... Bg4 {[%clk 0:02:56.4]} 7.
exf6 {[%clk 0:02:44.6]} 7... exf6 {[%clk 0:02:57.3]} 8. Bd3 {[%clk 0:02:40.3]}
8... Ne7 {[%clk 0:02:56.9]} 9. h3 {[%clk 0:02:38.3]} 9... Bf5 {[%clk 0:02:56.4]}
10. g4 {[%clk 0:02:31.2]} 10... Bxd3 {[%clk 0:02:48.7]} 11. Qxd3 {[%clk
0:02:32.1]} 11... Na6 {[%clk 0:02:47]} 12. h4 {[%clk 0:02:27.8]} 12... h5 {[%clk
0:02:26.1]} 13. gxh5 {[%clk 0:02:28.7]} 13... Rxh5 {[%clk 0:02:27]} 14. Ne2
{[%clk 0:02:26.8]} 14... Qd7 {[%clk 0:02:10]} 15. Nf4 {[%clk 0:02:24.5]} 15...
Rf5 {[%clk 0:02:09.8]} 16. O-O-O {[%clk 0:02:22.1]} 16... O-O-O {[%clk
0:02:09.3]} 17. Rdg1 {[%clk 0:02:21.3]} 17... Bh6 {[%clk 0:02:01.8]} 18. Rg4
{[%clk 0:02:01.3]} 18... Qd6 {[%clk 0:01:53.5]} 19. Qd2 {[%clk 0:01:55.1]} 19...
Re8 {[%clk 0:01:26.7]} 20. Nxg6 {[%clk 0:01:44.5]} 20... Nxg6 {[%clk 0:00:53.2]}
21. Bxh6 {[%clk 0:01:44.7]} 21... Rxf3 {[%clk 0:00:37.1]} 22. Rxg6 {[%clk
0:01:44.6]} 22... Qe6 {[%clk 0:00:33.8]} 23. Be3 {[%clk 0:01:30.7]} 23... Qe4
{[%clk 0:00:32.4]} 24. Rgg1 {[%clk 0:01:29.9]} 24... f5 {[%clk 0:00:29.3]} 25.
Bg5 {[%clk 0:01:23.4]} 25... Rg8 {[%clk 0:00:15.4]} 26. h5 {[%clk 0:01:18.7]}
26... f4 {[%clk 0:00:09.9]} 27. h6 {[%clk 0:01:18.6]} 27... Nc7 {[%clk
0:00:05.7]} 28. Bf6 {[%clk 0:01:01.8]} 28... Rxg1+ {[%clk 0:00:06.6]} 29. Rxg1
{[%clk 0:01:02.7]} 29... Rh3 {[%clk 0:00:07.4]} 30. Re1 {[%clk 0:00:53.9]} 30...
Rh1 {[%clk 0:00:06.2]} 31. Kd1 {[%clk 0:00:40.4]} 31... Qf3+ {[%clk 0:00:06.2]}
32. Qe2 {[%clk 0:00:40.5]} 32... Rxe1+ {[%clk 0:00:06.7]} 33. Kxe1 {[%clk
0:00:41.4]} 33... Qh1+ {[%clk 0:00:07]} 34. Kd2 {[%clk 0:00:41.6]} 34... Qxh6
{[%clk 0:00:07.6]} 35. Qg4+ {[%clk 0:00:41.5]} 35... Ne6 {[%clk 0:00:03.5]} 36.
Qxe6+ {[%clk 0:00:41.1]} 1-0

[Event "*** SCC Grand Prix: Titled Tuesday Blitz"]
[Site "Chess.com"]
[Date "2020.08.11"]
[Round "9"]
[White "Anna_ChessMate"]
[Black "MashaFromRussia"]
[Result "1-0"]
[WhiteElo "2594"]
[BlackElo "2406"]
[TimeControl "180+1"]
[EndTime "11:45:42 PDT"]
[Termination "Anna_ChessMate won by resignation"]

1. d4 {[%clk 0:02:55.1]} 1... Nf6 {[%clk 0:02:59.6]} 2. c4 {[%clk 0:02:55.5]}
2... g6 {[%clk 0:02:59.5]} 3. g3 {[%clk 0:02:56.1]} 3... Bg7 {[%clk 0:02:59.8]}
4. Bg2 {[%clk 0:02:56.8]} 4... O-O {[%clk 0:02:59.9]} 5. Nc3 {[%clk 0:02:57.4]}
5... d6 {[%clk 0:03:00.2]} 6. Nf3 {[%clk 0:02:58.1]} 6... Nc6 {[%clk 0:03:00.7]}
7. O-O {[%clk 0:02:58.4]} 7... a6 {[%clk 0:03:00.8]} 8. Qd2 {[%clk 0:02:57.7]}
8... Rb8 {[%clk 0:02:58.8]} 9. a4 {[%clk 0:02:57.1]} 9... Bd7 {[%clk 0:02:52.9]}
10. e4 {[%clk 0:02:55.1]} 10... Nb4 {[%clk 0:02:45.4]} 11. b3 {[%clk 0:02:52]}
11... c5 {[%clk 0:02:42]} 12. Bb2 {[%clk 0:02:49.2]} 12... b5 {[%clk 0:02:26]}
13. dxc5 {[%clk 0:02:37.5]} 13... dxc5 {[%clk 0:02:25.5]} 14. e5 {[%clk
0:02:38]} 14... Ng4 {[%clk 0:02:18.7]} 15. Nd5 {[%clk 0:02:34.6]} 15... bxc4
{[%clk 0:02:13.2]} 16. bxc4 {[%clk 0:02:30.5]} 16... Be6 {[%clk 0:02:02.2]} 17.
h3 {[%clk 0:02:27.4]} 17... Nh6 {[%clk 0:01:54.8]} 18. Rad1 {[%clk 0:02:26.4]}
18... Nf5 {[%clk 0:01:46.7]} 19. g4 {[%clk 0:02:23.9]} 19... Nd4 {[%clk
0:01:35.6]} 20. Nxd4 {[%clk 0:02:22.6]} 20... cxd4 {[%clk 0:01:36.5]} 21. Nxb4
{[%clk 0:02:21.7]} 21... Qb6 {[%clk 0:01:25.8]} 22. Ba3 {[%clk 0:02:14.2]} 22...
Bxc4 {[%clk 0:01:18.4]} 23. Rfe1 {[%clk 0:02:13.7]} 23... Bb3 {[%clk 0:01:12.1]}
24. Rb1 {[%clk 0:02:09.3]} 24... Bxa4 {[%clk 0:01:12.3]} 25. Rb2 {[%clk
0:01:48.4]} 25... Qa7 {[%clk 0:00:46.7]} 26. Nd5 {[%clk 0:01:42.6]} 26... e6
{[%clk 0:00:40.7]} 27. Bxf8 {[%clk 0:01:40.4]} 27... Bxf8 {[%clk 0:00:39.1]} 28.
Nf6+ {[%clk 0:01:36.7]} 28... Kg7 {[%clk 0:00:38.6]} 29. Rxb8 {[%clk 0:01:33.9]}
29... Qxb8 {[%clk 0:00:39.5]} 30. Qxd4 {[%clk 0:01:30.9]} 30... Qb5 {[%clk
0:00:38.7]} 31. Qf4 {[%clk 0:01:20.4]} 31... Bb4 {[%clk 0:00:29.9]} 32. Re4
{[%clk 0:01:17.6]} 32... a5 {[%clk 0:00:22.4]} 33. Nh5+ {[%clk 0:01:07.1]} 33...
gxh5 {[%clk 0:00:19.5]} 34. gxh5 {[%clk 0:01:08]} 34... Qd3 {[%clk 0:00:14.1]}
35. Rd4 {[%clk 0:00:55.6]} 35... Qf5 {[%clk 0:00:12.9]} 36. Qg3+ {[%clk
0:00:49.7]} 36... Kh6 {[%clk 0:00:12.7]} 37. Rg4 {[%clk 0:00:24.8]} 37... Bd2
{[%clk 0:00:09.5]} 38. Rxa4 {[%clk 0:00:23.2]} 38... Qxh5 {[%clk 0:00:07.5]} 39.
Rh4 {[%clk 0:00:21.7]} 1-0

[Event "*** SCC Grand Prix: Titled Tuesday Blitz"]
[Site "Chess.com"]
[Date "2020.08.11"]
[Round "9"]
[White "PSvidler"]
[Black "youngKID"]
[Result "1/2-1/2"]
[WhiteElo "2946"]
[BlackElo "2798"]
[TimeControl "180+1"]
[EndTime "11:45:44 PDT"]
[Termination "Game drawn by agreement"]

1. e4 {[%clk 0:03:00.9]} 1... e5 {[%clk 0:02:57.1]} 2. Nf3 {[%clk 0:03:00.6]}
2... Nc6 {[%clk 0:02:57.5]} 3. Bb5 {[%clk 0:03:00.4]} 3... a6 {[%clk 0:02:54.8]}
4. Ba4 {[%clk 0:03:00.4]} 4... Nf6 {[%clk 0:02:55.2]} 5. O-O {[%clk 0:02:59.9]}
5... d6 {[%clk 0:02:55.6]} 6. Bxc6+ {[%clk 0:02:45.3]} 6... bxc6 {[%clk
0:02:55.1]} 7. d4 {[%clk 0:02:45.7]} 7... exd4 {[%clk 0:02:55.9]} 8. Nxd4 {[%clk
0:02:45.7]} 8... c5 {[%clk 0:02:56.2]} 9. Nc6 {[%clk 0:02:44.5]} 9... Qd7 {[%clk
0:02:56.7]} 10. Na5 {[%clk 0:02:44.6]} 10... Qa4 {[%clk 0:02:51.4]} 11. Bd2
{[%clk 0:02:37.5]} 11... Be7 {[%clk 0:02:51.6]} 12. Re1 {[%clk 0:02:35.8]} 12...
O-O {[%clk 0:02:50.2]} 13. Nc3 {[%clk 0:02:25.5]} 13... Qe8 {[%clk 0:02:23.4]}
14. Bf4 {[%clk 0:02:21.8]} 14... Be6 {[%clk 0:02:17.1]} 15. e5 {[%clk
0:02:18.2]} 15... dxe5 {[%clk 0:02:14.7]} 16. Bxe5 {[%clk 0:02:19.1]} 16... Rd8
{[%clk 0:01:41.5]} 17. Qf3 {[%clk 0:02:18.9]} 17... Nd5 {[%clk 0:01:36.7]} 18.
Qg3 {[%clk 0:02:07.6]} 18... g6 {[%clk 0:00:54.6]} 19. Rad1 {[%clk 0:01:44.5]}
19... Nxc3 {[%clk 0:00:47.3]} 20. Qxc3 {[%clk 0:01:34.2]} 20... Rxd1 {[%clk
0:00:43.2]} 21. Rxd1 {[%clk 0:01:34]} 21... Qb5 {[%clk 0:00:41]} 22. b3 {[%clk
0:01:23.8]} 22... Qb4 {[%clk 0:00:23.9]} 23. Qxb4 {[%clk 0:01:23]} 23... cxb4
{[%clk 0:00:24.8]} 24. Nc6 {[%clk 0:01:22.8]} 24... Bc5 {[%clk 0:00:18.7]} 25.
Bxc7 {[%clk 0:00:54.9]} 25... Rc8 {[%clk 0:00:15.8]} 26. Rd8+ {[%clk 0:00:54.6]}
26... Rxd8 {[%clk 0:00:15.7]} 27. Bxd8 {[%clk 0:00:54.8]} 27... Bd5 {[%clk
0:00:13.7]} 28. Be7 {[%clk 0:00:48]} 28... Bxc6 {[%clk 0:00:13.2]} 29. Bxc5
{[%clk 0:00:48]} 29... Be4 {[%clk 0:00:13.9]} 30. Bxb4 {[%clk 0:00:48.4]} 30...
Bxc2 {[%clk 0:00:14.1]} 31. Bc5 {[%clk 0:00:48.3]} 31... Bb1 {[%clk 0:00:13.3]}
32. a3 {[%clk 0:00:48.1]} 32... Bc2 {[%clk 0:00:12.9]} 33. b4 {[%clk 0:00:48.1]}
33... f5 {[%clk 0:00:12.5]} 34. f3 {[%clk 0:00:48.4]} 34... Kf7 {[%clk
0:00:12.8]} 35. Kf2 {[%clk 0:00:48.8]} 35... Ke6 {[%clk 0:00:13.3]} 36. Ke3
{[%clk 0:00:49.3]} 36... Kd5 {[%clk 0:00:13.7]} 37. Kf4 {[%clk 0:00:49.5]} 37...
Ke6 {[%clk 0:00:13.4]} 38. Kg5 {[%clk 0:00:49.7]} 38... Kf7 {[%clk 0:00:13.3]}
39. h4 {[%clk 0:00:49.7]} 39... Bd3 {[%clk 0:00:10.9]} 40. Kh6 {[%clk
0:00:49.1]} 40... Kg8 {[%clk 0:00:09.2]} 41. g4 {[%clk 0:00:47.1]} 41... fxg4
{[%clk 0:00:09]} 42. fxg4 {[%clk 0:00:47.4]} 42... Be2 {[%clk 0:00:09.3]} 43.
Kg5 {[%clk 0:00:47.5]} 43... Kf7 {[%clk 0:00:09.8]} 44. Kf4 {[%clk 0:00:47.8]}
44... Ke6 {[%clk 0:00:09.9]} 45. a4 {[%clk 0:00:47.9]} 45... Bc4 {[%clk
0:00:08.7]} 46. a5 {[%clk 0:00:48.2]} 46... Be2 {[%clk 0:00:08.6]} 47. Kg5
{[%clk 0:00:48.1]} 47... Kf7 {[%clk 0:00:08.7]} 48. h5 {[%clk 0:00:47.4]} 48...
gxh5 {[%clk 0:00:08.7]} 49. gxh5 {[%clk 0:00:47.8]} 49... Kg8 {[%clk 0:00:09.1]}
50. h6 {[%clk 0:00:47.6]} 50... Bb5 {[%clk 0:00:10]} 51. Kf6 {[%clk 0:00:47.6]}
51... Bc6 {[%clk 0:00:10.9]} 52. Ke5 {[%clk 0:00:47.8]} 52... Bb5 {[%clk
0:00:11.8]} 53. Kd6 {[%clk 0:00:48.3]} 53... Ba4 {[%clk 0:00:12.7]} 1/2-1/2

[Event "*** SCC Grand Prix: Titled Tuesday Blitz"]
[Site "Chess.com"]
[Date "2020.08.11"]
[Round "9"]
[White "belisarius64"]
[Black "Rodalquilar"]
[Result "0-1"]
[WhiteElo "2704"]
[BlackElo "2635"]
[TimeControl "180+1"]
[EndTime "11:45:47 PDT"]
[Termination "Rodalquilar won on time"]

1. e4 {[%clk 0:03:00.9]} 1... d5 {[%clk 0:02:58.8]} 2. exd5 {[%clk 0:03:00.6]}
2... Qxd5 {[%clk 0:02:59.7]} 3. Nc3 {[%clk 0:03:00.8]} 3... Qa5 {[%clk
0:02:59.9]} 4. d4 {[%clk 0:03:00.8]} 4... Nf6 {[%clk 0:03:00.3]} 5. Nf3 {[%clk
0:03:00]} 5... Bf5 {[%clk 0:03:00.5]} 6. Bc4 {[%clk 0:02:52.7]} 6... e6 {[%clk
0:03:00.7]} 7. O-O {[%clk 0:02:47.9]} 7... Bb4 {[%clk 0:02:59.1]} 8. Bd2 {[%clk
0:02:44]} 8... Nc6 {[%clk 0:02:49.1]} 9. a3 {[%clk 0:02:43.4]} 9... Bxc3 {[%clk
0:02:49.5]} 10. Bxc3 {[%clk 0:02:44.3]} 10... Qb6 {[%clk 0:02:50.3]} 11. Ne5
{[%clk 0:02:39.9]} 11... Nxe5 {[%clk 0:02:49.3]} 12. dxe5 {[%clk 0:02:40.8]}
12... Rd8 {[%clk 0:02:49.2]} 13. Qf3 {[%clk 0:02:08.2]} 13... Ne4 {[%clk
0:02:01.3]} 14. Rad1 {[%clk 0:01:34]} 14... O-O {[%clk 0:01:49.6]} 15. h3 {[%clk
0:01:22.3]} 15... Qc5 {[%clk 0:01:09.6]} 16. Rxd8 {[%clk 0:00:42]} 16... Rxd8
{[%clk 0:01:08.9]} 17. Bd3 {[%clk 0:00:42.2]} 17... Nxc3 {[%clk 0:00:33.8]} 18.
Bxf5 {[%clk 0:00:41.9]} 18... exf5 {[%clk 0:00:22.4]} 19. bxc3 {[%clk
0:00:41.2]} 19... Qxa3 {[%clk 0:00:11.6]} 20. Qxf5 {[%clk 0:00:39.9]} 20... Qxc3
{[%clk 0:00:10.3]} 21. h4 {[%clk 0:00:37.6]} 21... Qc6 {[%clk 0:00:07.8]} 22. h5
{[%clk 0:00:34.1]} 22... Qe6 {[%clk 0:00:08.1]} 23. Qg5 {[%clk 0:00:30.2]} 23...
Re8 {[%clk 0:00:07.2]} 24. Rd1 {[%clk 0:00:29.1]} 24... h6 {[%clk 0:00:06.9]}
25. Qe3 {[%clk 0:00:25.3]} 25... Qxe5 {[%clk 0:00:07.4]} 26. Qxa7 {[%clk
0:00:25.8]} 26... Qxh5 {[%clk 0:00:07.8]} 27. Rb1 {[%clk 0:00:21.8]} 27... Qd5
{[%clk 0:00:06.8]} 28. g3 {[%clk 0:00:13.5]} 28... Qc6 {[%clk 0:00:06.9]} 29.
Qa2 {[%clk 0:00:10.5]} 29... Re2 {[%clk 0:00:06.8]} 30. Rd1 {[%clk 0:00:05.3]}
30... Qxc2 {[%clk 0:00:06.2]} 31. Qa8+ {[%clk 0:00:03.3]} 31... Kh7 {[%clk
0:00:06.2]} 32. Rd8 {[%clk 0:00:02.4]} 32... Rxf2 {[%clk 0:00:04.7]} 33. Qxb7
{[%clk 0:00:02.1]} 33... Re2 {[%clk 0:00:03.6]} 0-1

[Event "*** SCC Grand Prix: Titled Tuesday Blitz"]
[Site "Chess.com"]
[Date "2020.08.11"]
[Round "9"]
[White "Casablanca"]
[Black "emperor87"]
[Result "0-1"]
[WhiteElo "2459"]
[BlackElo "2626"]
[TimeControl "180+1"]
[EndTime "11:45:47 PDT"]
[Termination "emperor87 won on time"]

1. d4 {[%clk 0:03:00.9]} 1... d5 {[%clk 0:02:57.1]} 2. c4 {[%clk 0:03:00.5]}
2... Nc6 {[%clk 0:02:57]} 3. Nc3 {[%clk 0:02:57.9]} 3... dxc4 {[%clk 0:02:55.3]}
4. d5 {[%clk 0:02:58.8]} 4... Ne5 {[%clk 0:02:53.8]} 5. Bf4 {[%clk 0:02:58.7]}
5... Ng6 {[%clk 0:02:52.6]} 6. Bg3 {[%clk 0:02:59.1]} 6... e6 {[%clk 0:02:49.7]}
7. e4 {[%clk 0:02:55.1]} 7... exd5 {[%clk 0:02:47.2]} 8. Nxd5 {[%clk 0:02:52.2]}
8... Bd6 {[%clk 0:02:47.2]} 9. Bxc4 {[%clk 0:02:50.3]} 9... N8e7 {[%clk
0:02:44.7]} 10. Nf3 {[%clk 0:02:48.7]} 10... Bxg3 {[%clk 0:02:41.8]} 11. hxg3
{[%clk 0:02:49.6]} 11... c6 {[%clk 0:02:42]} 12. Nc3 {[%clk 0:02:47]} 12...
Qxd1+ {[%clk 0:02:41.6]} 13. Rxd1 {[%clk 0:02:47.9]} 13... h6 {[%clk 0:02:34.3]}
14. Kd2 {[%clk 0:02:37.3]} 14... Be6 {[%clk 0:02:27.2]} 15. Bxe6 {[%clk
0:02:36.3]} 15... fxe6 {[%clk 0:02:28.1]} 16. Kc2 {[%clk 0:02:35.7]} 16... Rd8
{[%clk 0:02:23.8]} 17. Rxd8+ {[%clk 0:02:28.1]} 17... Kxd8 {[%clk 0:02:22]} 18.
Nd4 {[%clk 0:02:28.6]} 18... Nf8 {[%clk 0:02:09.5]} 19. f4 {[%clk 0:02:25.7]}
19... Rg8 {[%clk 0:02:07.3]} 20. g4 {[%clk 0:02:09.8]} 20... Nc8 {[%clk
0:01:58.3]} 21. f5 {[%clk 0:01:59.1]} 21... exf5 {[%clk 0:01:55.8]} 22. gxf5
{[%clk 0:01:59.6]} 22... Nd7 {[%clk 0:01:54.7]} 23. Rd1 {[%clk 0:01:35.7]} 23...
Ke7 {[%clk 0:01:54]} 24. Nf3 {[%clk 0:01:35.2]} 24... Nd6 {[%clk 0:01:41.1]} 25.
g4 {[%clk 0:01:30.7]} 25... Nf7 {[%clk 0:01:40.9]} 26. Rg1 {[%clk 0:00:53.5]}
26... g6 {[%clk 0:01:35.9]} 27. Nh4 {[%clk 0:00:50.5]} 27... Nde5 {[%clk
0:01:21.8]} 28. fxg6 {[%clk 0:00:49.3]} 28... Nxg6 {[%clk 0:01:21.6]} 29. Nf5+
{[%clk 0:00:47.4]} 29... Ke6 {[%clk 0:01:21.9]} 30. Rh1 {[%clk 0:00:41.5]} 30...
Nge5 {[%clk 0:01:21.4]} 31. Ne2 {[%clk 0:00:17.6]} 31... Nxg4 {[%clk 0:01:16.9]}
32. Ned4+ {[%clk 0:00:14.4]} 32... Ke5 {[%clk 0:01:14.7]} 33. Re1 {[%clk
0:00:08.7]} 33... Ng5 {[%clk 0:01:10.3]} 34. Kd3 {[%clk 0:00:07.5]} 34... Nf2+
{[%clk 0:01:03.8]} 35. Kc4 {[%clk 0:00:07.2]} 35... Nfxe4 {[%clk 0:01:03.2]} 36.
Nxh6 {[%clk 0:00:04.9]} 36... Rf8 {[%clk 0:00:59.9]} 37. Ng4+ {[%clk 0:00:05.3]}
37... Kd6 {[%clk 0:00:59.9]} 38. Ne3 {[%clk 0:00:03.7]} 38... Kc7 {[%clk
0:00:59.1]} 39. Ndf5 {[%clk 0:00:03.1]} 39... Rd8 {[%clk 0:00:56.8]} 40. Rc1
{[%clk 0:00:02]} 40... b5+ {[%clk 0:00:56.2]} 41. Kb3 {[%clk 0:00:02]} 41... Kb6
{[%clk 0:00:56.1]} 42. Kc2 {[%clk 0:00:02.3]} 42... c5 {[%clk 0:00:55.6]} 43.
Kb1 {[%clk 0:00:03.2]} 43... c4 {[%clk 0:00:55.3]} 44. Ng4 {[%clk 0:00:03.4]}
44... Nf3 {[%clk 0:00:54.6]} 45. Nge3 {[%clk 0:00:02.8]} 45... Rd2 {[%clk
0:00:53.3]} 46. Ng3 {[%clk 0:00:01.2]} 46... Nxg3 {[%clk 0:00:51.7]} 47. Rxc4
{[%clk 0:00:02.1]} 47... Rd3 {[%clk 0:00:46.1]} 48. Nd5+ {[%clk 0:00:01.4]}
48... Rxd5 {[%clk 0:00:45.6]} 49. Rc3 {[%clk 0:00:02.3]} 49... Rf5 {[%clk
0:00:45.5]} 0-1